fUST/lending_fUST_20250914
["ID","MTS","AMOUNT","RATE_DAILY","PERIOD"]
[385371846,1757796649432,-480.0,0.00024931,3]
[385371847,1757796649441,-480.0,0.00024931,3]
[385371848,1757796649450,-480.0,0.00024931,3]
[385371849,1757796649459,-480.0,0.00024931,3]
[385371850,1757796649469,-480.0,0.00024931,3]
[385371851,1757796649479,-480.0,0.00024931,3]
[385371852,1757796649488,-1031.77,0.00024931,3]
[385371853,1757796649497,-480.0,0.00024931,3]
[385371854,1757796649507,-211.58,0.00024931,3]
[385371855,1757796649516,-480.0,0.00024931,3]
[385371856,1757796649525,-480.0,0.00024931,3]
[385371857,1757796649535,-480.0,0.00024931,3]
[385371858,1757796649544,-593.64,0.00024931,3]
[385371859,1757796649554,-1624.85,0.00024931,3]
[385371860,1757796649563,-480.0,0.00024931,3]
[385371861,1757796649573,-480.0,0.00024931,3]
[385371862,1757796649583,-500.64,0.00024931,3]
[385371863,1757796649592,-2444.23,0.00024931,3]
[385371864,1757796649601,-480.0,0.00024931,3]
[385371865,1757796649610,-480.0,0.00024931,3]
[385371866,1757796649619,-969.82,0.00024931,3]
[385371867,1757796649628,-480.0,0.00024931,3]
[385371868,1757796649638,-480.0,0.00024931,3]
[385371869,1757796649647,-480.0,0.00024931,3]
[385371870,1757796649656,-480.0,0.00024931,3]
[385371871,1757796649665,-480.0,0.00024931,3]
[385371872,1757796649674,-480.0,0.00024931,3]
[385371873,1757796649683,-480.0,0.00024931,3]
[385371874,1757796649693,-480.0,0.00024931,3]
[385371875,1757796649702,-480.0,0.00024931,3]
[385371876,1757796649711,-480.0,0.00024931,3]
[385371877,1757796649720,-480.0,0.00024931,3]
[385371878,1757796649730,-480.0,0.00024931,3]
[385371879,1757796649739,-492.09767114,0.00024931,3]
[385371880,1757796649748,-480.0,0.00024931,3]
[385371881,1757796649757,-480.0,0.00024931,3]
[385371882,1757796649766,-480.0,0.00024931,3]
[385371883,1757796649775,-1000.0,0.00024931,3]
[385371884,1757796649785,-862.9,0.00024931,3]
[385371885,1757796649794,-555.45,0.00024931,3]
[385371886,1757796649804,-651.17,0.00024931,3]
[385371887,1757796649813,-480.0,0.00024931,3]
[385371888,1757796649822,-480.0,0.00024931,3]
[385371889,1757796649831,-480.0,0.00024931,3]
[385371890,1757796649840,-480.0,0.00024931,3]
[385371891,1757796649849,-1141.73,0.00024931,3]
[385371892,1757796649859,-480.0,0.00024931,3]
[385371893,1757796649868,-480.0,0.00024931,3]
[385371894,1757796649877,-480.0,0.00024931,3]
[385371895,1757796649886,-480.0,0.00024931,3]
[385371896,1757796649895,-480.0,0.00024931,3]
[385371897,1757796649906,-480.0,0.00024931,3]
[385371898,1757796649915,-481.99616846,0.00024931,3]
[385371899,1757796649925,-480.0,0.00024931,3]
[385371900,1757796649936,-480.0,0.00024931,3]
[385371901,1757796649946,-480.0,0.00024931,3]
[385371902,1757796649956,-480.0,0.00024931,3]
[385371903,1757796649967,-480.0,0.00024931,3]
[385371904,1757796649976,-480.0,0.00024931,3]
[385371905,1757796649985,-1159.32,0.00024931,3]
[385371906,1757796649995,-480.0,0.00024931,3]
[385371907,1757796650003,-480.0,0.00024931,3]
[385371908,1757796650012,-480.0,0.00024931,3]
[385371909,1757796650021,-480.0,0.00024931,3]
[385371910,1757796650031,-480.0,0.00024931,3]
[385371911,1757796650040,-481.28335871,0.00024931,3]
[385371912,1757796650049,-480.0,0.00024931,3]
[385371913,1757796650058,-480.0,0.00024931,3]
[385371914,1757796650068,-555.9,0.00024931,3]
[385371915,1757796650077,-480.0,0.00024931,3]
[385371916,1757796650086,-480.0,0.00024931,3]
[385371917,1757796650095,-568.91,0.00024931,3]
[385371918,1757796650105,-480.0,0.00024931,3]
[385371919,1757796650114,-480.0,0.00024931,3]
[385371920,1757796650124,-480.0,0.00024931,3]
[385371921,1757796650133,-169.88913041,0.00024931,3]
[385371922,1757796650142,-480.0,0.00024931,3]
[385371923,1757796650151,-538.33,0.00024931,3]
[385371924,1757796650160,-1821.77,0.00024931,3]
[385371925,1757796650169,-480.0,0.00024931,3]
[385371926,1757796650178,-480.0,0.00024931,3]
[385371927,1757796650187,-480.0,0.00024931,3]
[385371928,1757796650196,-480.0,0.00024931,3]
[385371929,1757796650205,-480.0,0.00024931,3]
[385371930,1757796650214,-480.0,0.00024931,3]
[385371931,1757796650223,-529.18,0.00024931,3]
[385371932,1757796650232,-480.0,0.00024931,3]
[385371933,1757796650241,-480.0,0.00024931,3]
[385371934,1757796650250,-827.87,0.00024931,3]
[385371935,1757796650260,-480.0,0.00024931,3]
[385371936,1757796650270,-480.0,0.00024931,3]
[385371937,1757796650280,-480.0,0.00024931,3]
[385371938,1757796650289,-480.0,0.00024931,3]
[385371939,1757796650298,-4695.15,0.00024931,3]
[385371940,1757796650307,-5001.25,0.00024931,3]
[385371941,1757796650317,-480.0,0.00024931,3]
[385371942,1757796650326,-480.0,0.00024931,3]
[385371943,1757796650335,-480.0,0.00024931,3]
[385371944,1757796650344,-480.0,0.00024931,3]
[385371945,1757796650354,-507.15,0.00024931,3]
[385371946,1757796650363,-480.0,0.00024931,3]
[385371947,1757796650372,-480.0,0.00024931,3]
[385371948,1757796650381,-480.0,0.00024931,3]
[385371949,1757796650390,-480.0,0.00024931,3]
[385371950,1757796650399,-466.10529716,0.00024931,3]
[385371951,1757796650408,-4262.37,0.00024931,3]
[385371952,1757796650417,-587.3,0.00024931,3]
[385371953,1757796650426,-480.0,0.00024931,3]
[385371954,1757796650435,-480.0,0.00024931,3]
[385371955,1757796650444,-2202.42,0.00024931,3]
[385371956,1757796650452,-480.0,0.00024931,3]
[385371957,1757796650462,-480.0,0.00024931,3]
[385371958,1757796650471,-480.0,0.00024931,3]
[385371959,1757796650480,-480.0,0.00024931,3]
[385371960,1757796650492,-480.0,0.00024931,3]
[385371961,1757796650501,-952.88,0.00024931,3]
[385371962,1757796650510,-561.85,0.00024931,3]
[385371963,1757796650519,-699.71,0.00024931,3]
[385371964,1757796650529,-836.05,0.00024931,3]
[385371965,1757796650538,-1482.59,0.00024931,3]
[385371966,1757796650547,-480.0,0.00024931,3]
[385371967,1757796650557,-480.0,0.00024931,3]
[385371968,1757796650567,-1134.97,0.00024931,3]
[385371969,1757796650576,-480.47,0.00024931,3]
[385371970,1757796650585,-480.0,0.00024931,3]
[385371971,1757796650594,-480.0,0.00024931,3]
[385371972,1757796650603,-480.0,0.00024931,3]
[385371973,1757796650611,-779.34,0.00024931,3]
[385371974,1757796650621,-480.0,0.00024931,3]
[385371975,1757796650631,-679.07,0.00024931,3]
[385371976,1757796650640,-480.0,0.00024931,3]
[385371977,1757796650649,-480.0,0.00024931,3]
[385371978,1757796650658,-1067.53,0.00024931,3]
[385371979,1757796650667,-480.0,0.00024931,3]
[385371980,1757796650676,-480.0,0.00024931,3]
[385371981,1757796650685,-480.0,0.00024931,3]
[385371982,1757796650695,-480.0,0.00024931,3]
[385371983,1757796650703,-480.0,0.00024931,3]
[385371984,1757796650712,-480.0,0.00024931,3]
[385371985,1757796650721,-274.26208804,0.00024931,3]
[385371986,1757796650730,-480.0,0.00024931,3]
[385371987,1757796650740,-480.0,0.00024931,3]
[385371988,1757796650749,-1725.96,0.00024931,3]
[385371989,1757796650758,-480.0,0.00024931,3]
[385371990,1757796650767,-480.0,0.00024931,3]
[385371991,1757796650776,-480.0,0.00024931,3]
[385371992,1757796650785,-653.8,0.00024931,3]
[385371993,1757796650794,-698.98,0.00024931,3]
[385371994,1757796650803,-250.72834893,0.00024931,3]
[385371995,1757796650812,-1102.78,0.00024931,3]
[385371996,1757796650822,-480.0,0.00024931,3]
[385371997,1757796650831,-480.0,0.00024931,3]
[385371998,1757796650840,-502.38,0.00024931,3]
[385371999,1757796650849,-480.0,0.00024931,3]
[385372000,1757796650859,-619.13,0.00024931,3]
[385372001,1757796650868,-505.86,0.00024931,3]
[385372002,1757796650877,-480.0,0.00024931,3]
[385372003,1757796650886,-787.79,0.00024931,3]
[385372004,1757796650895,-16598.65,0.00024931,3]
[385372005,1757796650904,-323.43069554,0.00024931,3]
[385372006,1757796650913,-480.0,0.00024931,3]
[385372007,1757796650922,-3437.83,0.00024931,3]
[385372008,1757796650931,-1817.96,0.00024931,3]
[385372009,1757796650941,-1506.18,0.00024931,3]
[385372010,1757796650950,-610.01,0.00024931,3]
[385372011,1757796650959,-480.0,0.00024931,3]
[385372012,1757796650969,-480.0,0.00024931,3]
[385372013,1757796650978,-480.0,0.00024931,3]
[385372014,1757796650987,-480.0,0.00024931,3]
[385372015,1757796650996,-480.0,0.00024931,3]
[385372016,1757796651005,-480.0,0.00024931,3]
[385372017,1757796651014,-480.0,0.00024931,3]
[385372018,1757796651023,-480.0,0.00024931,3]
[385372019,1757796651033,-3256.61,0.00024931,3]
[385372020,1757796651042,-1664.46,0.00024931,3]
[385372021,1757796651052,-480.0,0.00024931,3]
[385372022,1757796651061,-480.0,0.00024931,3]
[385372023,1757796651070,-480.0,0.00024931,3]
[385372024,1757796651190,-480.0,0.00024931,3]
[385372025,1757796651201,-480.0,0.00024931,3]
[385372026,1757796651210,-480.0,0.00024931,3]
[385372027,1757796651219,-486.79009347,0.00024931,3]
[385372028,1757796651229,-480.0,0.00024931,3]
[385372029,1757796651238,-480.0,0.00024931,3]
[385372030,1757796651247,-480.0,0.00024931,3]
[385372031,1757796651256,-480.0,0.00024931,3]
[385372032,1757796651265,-480.0,0.00024931,3]
[385372033,1757796651274,-852.64,0.00024931,3]
[385372034,1757796651282,-564.96,0.00024931,3]
[385372035,1757796651291,-480.0,0.00024931,3]
[385372036,1757796651300,-480.0,0.00024931,3]
[385372037,1757796651309,-658.33,0.00024931,3]
[385372038,1757796651318,-480.0,0.00024931,3]
[385372039,1757796651327,-1181.65,0.00024931,3]
[385372040,1757796651336,-480.0,0.00024931,3]
[385372041,1757796651345,-416.38539791,0.00024931,3]
[385372042,1757796651354,-480.0,0.00024931,3]
[385372043,1757796651363,-480.0,0.00024931,3]
[385372044,1757796651372,-481.71795782,0.00024931,3]
[385372045,1757796651381,-480.0,0.00024931,3]
[385372046,1757796651390,-480.0,0.00024931,3]
[385372047,1757796651400,-480.0,0.00024931,3]
[385372048,1757796651409,-480.0,0.00024931,3]
[385372049,1757796651418,-2410.02,0.00024931,3]
[385372050,1757796651428,-480.0,0.00024931,3]
[385372051,1757796651437,-537.5,0.00024931,3]
[385372052,1757796651448,-5370.07,0.00024931,3]
[385372053,1757796651457,-712.1,0.00024931,3]
[385372054,1757796651467,-480.0,0.00024931,3]
[385372055,1757796651476,-1051.33,0.00024931,3]
[385372056,1757796651490,-480.0,0.00024931,3]
[385372057,1757796651500,-1176.15,0.00024931,3]
[385372058,1757796651509,-480.0,0.00024931,3]
[385372059,1757796651519,-1687.14,0.00024931,3]
[385372060,1757796651528,-480.0,0.00024931,3]
[385372061,1757796651537,-687.17,0.00024931,3]
[385372062,1757796651547,-677.5,0.00024931,3]
[385372063,1757796651556,-484.47828682,0.00024931,3]
[385372064,1757796651566,-481.50047328,0.00024931,3]
[385372065,1757796651575,-480.0,0.00024931,3]
[385372066,1757796651584,-1093.28,0.00024931,3]
[385372067,1757796651593,-1317.14,0.00024931,3]
[385372068,1757796651602,-480.0,0.00024931,3]
[385372069,1757796651611,-1974.57,0.00024931,3]
[385372070,1757796651621,-3499.78,0.00024931,3]
[385372071,1757796651630,-480.0,0.00024931,3]
[385372072,1757796651642,-480.0,0.00024931,3]
[385372073,1757796651653,-480.0,0.00024931,3]
[385372074,1757796651663,-480.0,0.00024931,3]
[385372075,1757796651672,-1793.0,0.00024931,3]
[385372076,1757796651681,-480.0,0.00024931,3]
[385372077,1757796651690,-480.0,0.00024931,3]
[385372078,1757796651699,-1372.97,0.00024931,3]
[385372079,1757796651709,-480.0,0.00024931,3]
[385372080,1757796651718,-480.0,0.00024931,3]
[385372081,1757796651727,-704.76,0.00024931,3]
[385372082,1757796651736,-375.29640062,0.00024931,3]
[385372083,1757796651747,-480.0,0.00024931,3]
[385372084,1757796651756,-480.0,0.00024931,3]
[385372085,1757796651766,-488.84452631,0.00024931,3]
[385372086,1757796651775,-480.0,0.00024931,3]
[385372087,1757796651784,-480.0,0.00024931,3]
[385372088,1757796651793,-480.0,0.00024931,3]
[385372089,1757796651802,-480.0,0.00024931,3]
[385372090,1757796651811,-492.09438762,0.00024931,3]
[385372091,1757796651823,-1389.02,0.00024931,3]
[385372092,1757796651833,-3999.4,0.00024931,3]
[385372093,1757796651843,-480.0,0.00024931,3]
[385372094,1757796651854,-480.0,0.00024931,3]
[385372095,1757796651864,-3494.7,0.00024931,3]
[385372096,1757796651873,-1036.5,0.00024931,3]
[385372097,1757796651883,-480.0,0.00024931,3]
[385372098,1757796651892,-480.0,0.00024931,3]
[385372099,1757796651902,-26918.05,0.00024931,3]
[385372100,1757796651913,-480.0,0.00024931,3]
[385372101,1757796651923,-803.15,0.00024931,3]
[385372102,1757796651933,-480.0,0.00024931,3]
[385372103,1757796651943,-480.0,0.00024931,3]
[385372104,1757796651955,-480.0,0.00024931,3]
[385372105,1757796651964,-480.0,0.00024931,3]
[385372106,1757796651973,-480.0,0.00024931,3]
[385372107,1757796651983,-480.0,0.00024931,3]
[385372108,1757796651992,-480.0,0.00024931,3]
[385372109,1757796652002,-480.0,0.00024931,3]
[385372110,1757796652011,-480.0,0.00024931,3]
[385372111,1757796652021,-1695.15,0.00024931,3]
[385372112,1757796652031,-520.73,0.00024931,3]
[385372113,1757796652041,-480.0,0.00024931,3]
[385372114,1757796652050,-480.0,0.00024931,3]
[385372115,1757796652060,-480.0,0.00024931,3]
[385372116,1757796652071,-480.0,0.00024931,3]
[385372117,1757796652080,-158.0467849,0.00024931,3]
[385372118,1757796652091,-480.0,0.00024931,3]
[385372119,1757796652102,-1404.37,0.00024931,3]
[385372120,1757796652114,-480.0,0.00024931,3]
[385372121,1757796652125,-480.0,0.00024931,3]
[385372122,1757796652134,-9300.6,0.00024931,3]
[385372123,1757796652144,-480.0,0.00024931,3]
[385372124,1757796652153,-480.0,0.00024931,3]
[385372125,1757796652163,-480.0,0.00024931,3]
[385372126,1757796652172,-480.0,0.00024931,3]
[385372127,1757796652181,-480.0,0.00024931,3]
[385372128,1757796652190,-482.09733844,0.00024931,3]
[385372129,1757796652199,-653.93,0.00024931,3]
[385372130,1757796652209,-1836.95,0.00024931,3]
[385372131,1757796652218,-480.0,0.00024931,3]
[385372132,1757796652228,-480.0,0.00024931,3]
[385372133,1757796652237,-480.0,0.00024931,3]
[385372134,1757796652246,-480.0,0.00024931,3]
[385372135,1757796652256,-480.0,0.00024931,3]
[385372136,1757796652265,-480.0,0.00024931,3]
[385372137,1757796652275,-480.0,0.00024931,3]
[385372138,1757796652283,-480.0,0.00024931,3]
[385372139,1757796652294,-480.0,0.00024931,3]
[385372140,1757796652304,-519.28,0.00024931,3]
[385372141,1757796652313,-480.0,0.00024931,3]
[385372142,1757796652323,-480.0,0.00024931,3]
[385372143,1757796652332,-3149.83,0.00024931,3]
[385372144,1757796652342,-480.0,0.00024931,3]
[385372145,1757796652351,-168.07015121,0.00024931,3]
[385372146,1757796652361,-1820.96,0.00024931,3]
[385372147,1757796652371,-480.0,0.00024931,3]
[385372148,1757796652385,-9134.73,0.00024931,3]
[385372149,1757796652398,-480.0,0.00024931,3]
[385372150,1757796652408,-480.0,0.00024931,3]
[385372151,1757796652419,-620.02,0.00024931,3]
[385372152,1757796652430,-480.0,0.00024931,3]
[385372153,1757796652441,-480.0,0.00024931,3]
[385372154,1757796652450,-480.0,0.00024931,3]
[385372155,1757796652460,-482.3521632,0.00024931,3]
[385372156,1757796652469,-6274.25,0.00024931,3]
[385372157,1757796652479,-2987.73,0.00024931,3]
[385372158,1757796652495,-480.0,0.00024931,3]
[385372159,1757796652504,-480.0,0.00024931,3]
[385372160,1757796652513,-480.0,0.00024931,3]
[385372161,1757796652523,-480.0,0.00024931,3]
[385372162,1757796652532,-3977.5,0.00024931,3]
[385372163,1757796652541,-1293.35,0.00024931,3]
[385372164,1757796652551,-1885.78,0.00024931,3]
[385372165,1757796652563,-540.38,0.00024931,3]
[385372166,1757796652573,-641.58,0.00024931,3]
[385372167,1757796652582,-200.30727471,0.00024931,3]
[385372168,1757796652593,-480.0,0.00024931,3]
[385372169,1757796652604,-506.02,0.00024931,3]
[385372170,1757796652614,-480.0,0.00024931,3]
[385372171,1757796652626,-583.43,0.00024931,3]
[385372172,1757796652635,-485.22,0.00024931,3]
[385372173,1757796652644,-571.86,0.00024931,3]
[385372174,1757796652654,-324.91355543,0.00024931,2]
[385372175,1757796652664,-449.71260328,0.00024931,3]
[385372176,1757796652674,-3351.08,0.00024931,3]
[385372177,1757796652684,-679.47,0.00024931,3]
[385372178,1757796652694,-608.24,0.00024931,3]
[385372179,1757796652704,-480.0,0.00024931,3]
[385372180,1757796652713,-500.0,0.00024932,2]
[385372181,1757796652723,-3081.01,0.00024941,3]
[385372182,1757796652732,-151.34575888,0.00024973,2]
[385372183,1757796652741,-500.0,0.00024973,2]
[385372184,1757796652750,-1093.59,0.00025,7]
[385372185,1757796652760,-2469.36,0.00025,7]
[385372186,1757796652769,-152.176234,0.00025005,20]
[385372187,1757796652778,-160.0,0.00025057,2]
[385372188,1757796652787,-168.0,0.00025067,2]
[385372189,1757796652797,-3797.41122549,0.00025105,2]
[385372190,1757796652806,-2695.0,0.00025116,2]
[385372191,1757796652816,-1006.97,0.00025117,2]
[385372192,1757796652825,-770.117,0.00025117,2]
[385372193,1757796652835,-2156.0,0.00025117,2]
[385372194,1757796652846,-250.0,0.00025117,2]
[385372195,1757796652856,-6000.0,0.00025148,3]
[385372196,1757796652866,-300.0,0.00025149,20]
[385372197,1757796652876,-300.0,0.00025149,20]
[385372198,1757796652885,-300.0,0.00025149,20]
[385372199,1757796652894,-300.0,0.00025149,20]
[385372200,1757796652904,-300.0,0.00025149,20]
[385372201,1757796652912,-300.0,0.00025149,20]
[385372202,1757796652922,-300.0,0.00025149,20]
[385372203,1757796652931,-300.0,0.00025149,20]
[385372204,1757796652940,-300.0,0.00025149,20]
[385372205,1757796652949,-300.0,0.00025149,20]
[385372206,1757796652958,-300.0,0.00025149,20]
[385372207,1757796652967,-300.0,0.00025149,20]
[385372208,1757796652977,-300.0,0.00025149,20]
[385372209,1757796652986,-300.0,0.00025149,20]
[385372210,1757796652995,-300.0,0.00025149,20]
[385372211,1757796653004,-600.0,0.00025149,20]
[385372212,1757796653013,-150.354,0.00025199,2]
[385372213,1757796653023,-150.404,0.00025199,2]
[385372214,1757796653033,-196.091,0.00025199,2]
[385372215,1757796653043,-246.21,0.00025199,2]
[385372216,1757796653053,-157.72913138,0.00025205,3]
[385372217,1757796653064,-157.0,0.00025205,3]
[385372218,1757796653073,-500.0,0.00025205,3]
[385372219,1757796653082,-157.0,0.00025205,3]
[385372220,1757796653093,-282.14503928,0.00025205,3]
[385372221,1757796653102,-500.0,0.00025205,3]
[385372222,1757796653111,-157.0,0.00025205,3]
[385372223,1757796653120,-157.0,0.00025205,3]
[385372224,1757796653130,-199.38090722,0.00025205,3]
[385372225,1757796653139,-157.0,0.00025205,3]
[385372226,1757796653148,-157.0,0.00025205,3]
[385372227,1757796653157,-157.0,0.00025205,3]
[385372228,1757796653166,-746.0,0.00025205,3]
[385372229,1757796653175,-500.0,0.00025205,3]
[385372230,1757796653185,-157.0,0.00025205,3]
[385372231,1757796653194,-480.0,0.00025205,3]
[385372232,1757796653204,-480.0,0.00025205,3]
[385372233,1757796653215,-439.89609407,0.00025205,3]
[385372234,1757796653224,-480.0,0.00025205,3]
[385372235,1757796653235,-480.0,0.00025205,3]
[385372236,1757796653244,-480.0,0.00025205,3]
[385372237,1757796653254,-480.0,0.00025205,3]
[385372238,1757796653263,-480.0,0.00025205,3]
[385372239,1757796653272,-480.0,0.00025205,3]
[385372240,1757796653281,-480.0,0.00025205,3]
[385372241,1757796653291,-480.0,0.00025205,3]
[385372242,1757796653301,-480.0,0.00025205,3]
[385372243,1757796653310,-480.0,0.00025205,3]
[385372244,1757796653319,-575.64,0.00025205,3]
[385372245,1757796653329,-480.0,0.00025205,3]
[385372246,1757796653338,-480.0,0.00025205,3]
[385372247,1757796653347,-690.06,0.00025205,3]
[385372248,1757796653356,-645.08,0.00025205,3]
[385372249,1757796653365,-155.69032148,0.00025205,3]
[385372250,1757796653374,-480.0,0.00025205,3]
[385372251,1757796653383,-480.0,0.00025205,3]
[385372252,1757796653495,-480.0,0.00025205,3]
[385372253,1757796653505,-480.0,0.00025205,3]
[385372254,1757796653514,-480.0,0.00025205,3]
[385372255,1757796653524,-483.60140807,0.00025205,3]
[385372256,1757796653533,-480.0,0.00025205,3]
[385372257,1757796653542,-480.0,0.00025205,3]
[385372258,1757796653552,-480.0,0.00025205,3]
[385372259,1757796653561,-531.86374203,0.00025205,3]
[385372260,1757796653570,-480.0,0.00025205,3]
[385372261,1757796653580,-480.0,0.00025205,3]
[385372262,1757796653588,-1056.48,0.00025205,3]
[385372263,1757796653598,-480.0,0.00025205,3]
[385372264,1757796653607,-486.52,0.00025205,3]
[385372265,1757796653616,-730.41,0.00025205,3]
[385372266,1757796653626,-222.76391225,0.00025205,3]
[385372267,1757796653636,-480.0,0.00025205,3]
[385372268,1757796653645,-480.0,0.00025205,3]
[385372269,1757796653654,-486.97,0.00025205,3]
[385372270,1757796653664,-480.0,0.00025205,3]
[385372271,1757796653674,-480.0,0.00025205,3]
[385372272,1757796653683,-480.0,0.00025205,3]
[385372273,1757796653692,-876.32,0.00025205,3]
[385372274,1757796653702,-480.0,0.00025205,3]
[385372275,1757796653711,-920.85,0.00025205,3]
[385372276,1757796653720,-480.0,0.00025205,3]
[385372277,1757796653730,-312.70430582,0.00025205,3]
[385372278,1757796653739,-480.0,0.00025205,3]
[385372279,1757796653748,-480.0,0.00025205,3]
[385372280,1757796653757,-480.0,0.00025205,3]
[385372281,1757796653766,-480.0,0.00025205,3]
[385372282,1757796653775,-480.0,0.00025205,3]
[385372283,1757796653784,-480.0,0.00025205,3]
[385372284,1757796653793,-480.0,0.00025205,3]
[385372285,1757796653803,-481.29,0.00025205,3]
[385372286,1757796653812,-720.26,0.00025205,3]
[385372287,1757796653821,-480.0,0.00025205,3]
[385372288,1757796653831,-880.32,0.00025205,3]
[385372289,1757796653840,-2070.95,0.00025205,3]
[385372290,1757796653849,-1226.32,0.00025205,3]
[385372291,1757796653858,-480.0,0.00025205,3]
[385372292,1757796653868,-480.0,0.00025205,3]
[385372293,1757796653877,-553.62082227,0.00025205,3]
[385372294,1757796653886,-480.0,0.00025205,3]
[385372295,1757796653895,-1074.58,0.00025205,3]
[385372296,1757796653904,-480.0,0.00025205,3]
[385372297,1757796653914,-651.68,0.00025205,3]
[385372298,1757796653923,-1364.01,0.00025205,3]
[385372299,1757796653932,-480.0,0.00025205,3]
[385372300,1757796653941,-480.0,0.00025205,3]
[385372301,1757796653950,-1642.82,0.00025205,3]
[385372302,1757796653959,-480.0,0.00025205,3]
[385372303,1757796653968,-480.0,0.00025205,3]
[385372304,1757796653978,-200.0,0.00025205,3]
[385372305,1757796653987,-1026.02,0.00025205,3]
[385372306,1757796653996,-480.0,0.00025205,3]
[385372307,1757796654005,-480.0,0.00025205,3]
[385372308,1757796654015,-480.0,0.00025205,3]
[385372309,1757796654024,-480.0,0.00025205,3]
[385372310,1757796654034,-480.0,0.00025205,3]
[385372311,1757796654043,-480.0,0.00025205,3]
[385372312,1757796654052,-480.0,0.00025205,3]
[385372313,1757796654061,-1919.39,0.00025205,3]
[385372314,1757796654070,-979.66,0.00025205,3]
[385372315,1757796654080,-480.0,0.00025205,3]
[385372316,1757796654090,-659.48,0.00025205,3]
[385372317,1757796654099,-625.66,0.00025205,3]
[385372318,1757796654108,-480.0,0.00025205,3]
[385372319,1757796654117,-743.28,0.00025205,3]
[385372320,1757796654126,-480.0,0.00025205,3]
[385372321,1757796654135,-635.22,0.00025205,3]
[385372322,1757796654145,-480.0,0.00025205,3]
[385372323,1757796654154,-1128.55,0.00025205,3]
[385372324,1757796654163,-480.0,0.00025205,3]
[385372325,1757796654172,-574.84,0.00025205,3]
[385372326,1757796654181,-551.0,0.00025205,3]
[385372327,1757796654190,-480.0,0.00025205,3]
[385372328,1757796654199,-480.0,0.00025205,3]
[385372329,1757796654209,-480.0,0.00025205,3]
[385372330,1757796654218,-480.0,0.00025205,3]
[385372331,1757796654228,-480.0,0.00025205,3]
[385372332,1757796654238,-480.0,0.00025205,3]
[385372333,1757796654248,-1190.53,0.00025205,3]
[385372334,1757796654257,-772.88,0.00025205,3]
[385372335,1757796654266,-480.0,0.00025205,3]
[385372336,1757796654275,-480.0,0.00025205,3]
[385372337,1757796654285,-480.0,0.00025205,3]
[385372338,1757796654294,-480.0,0.00025205,3]
[385372339,1757796654304,-480.0,0.00025205,3]
[385372340,1757796654313,-1031.77,0.00025205,3]
[385372341,1757796654322,-480.0,0.00025205,3]
[385372342,1757796654331,-480.0,0.00025205,3]
[385372343,1757796654340,-480.0,0.00025205,3]
[385372344,1757796654349,-169.37809204,0.00025205,3]
[385372345,1757796654359,-593.64,0.00025205,3]